lending/lending_fUSD_20250808
["ID","MTS","AMOUNT","RATE_DAILY","PERIOD"]
[377914913,1754613121114,-2388.63,0.00021095,2]
[377914914,1754613121128,-1288.88,0.00021095,2]
[377914915,1754613121138,-2350.74,0.00021095,2]
[377914916,1754613121148,-2311.16,0.00021095,2]
[377914917,1754613121159,-2136.59,0.00021095,2]
[377914918,1754613121171,-1822.62,0.00021095,2]
[377914919,1754613121182,-400.0,0.00021095,2]
[377914920,1754613121192,-612.27,0.00021095,2]
[377914921,1754613121202,-1810.11,0.00021095,2]
[377914922,1754613121213,-1537.46,0.00021095,2]
[377914923,1754613121223,-1369.16,0.00021095,2]
[377914924,1754613121235,-511.54,0.00021095,2]
[377914925,1754613121245,-482.95,0.00021095,2]
[377914926,1754613121256,-1248.2,0.00021095,2]
[377914927,1754613121266,-400.0,0.00021095,2]
[377914928,1754613121277,-1594.51,0.00021095,2]
[377914929,1754613121287,-1678.28,0.00021095,2]
[377914930,1754613121297,-845.84,0.00021095,2]
[377914931,1754613121308,-5670.63,0.00021095,2]
[377914932,1754613121319,-483.64,0.00021095,2]
[377914933,1754613121330,-1205.01,0.00021095,2]
[377914934,1754613121339,-893.25,0.00021095,2]
[377914935,1754613121350,-663.05,0.00021095,2]
[377914936,1754613121360,-1256.8,0.00021095,2]
[377914937,1754613121370,-2578.27,0.00021095,2]
[377914938,1754613121384,-1440.32,0.00021095,2]
[377914939,1754613121394,-1244.17,0.00021095,2]
[377914940,1754613121404,-2047.45,0.00021095,2]
[377914941,1754613121415,-738.95,0.00021095,2]
[377914942,1754613121424,-575.03,0.00021095,2]
[377914943,1754613121435,-500.07,0.00021095,2]
[377914944,1754613121445,-2097.6,0.00021095,2]
[377914945,1754613121455,-422.96,0.00021095,2]
[377914946,1754613121465,-400.0,0.00021095,2]
[377914947,1754613121476,-759.15,0.00021095,2]
[377914948,1754613121486,-400.0,0.00021095,2]
[377914949,1754613121496,-1321.01,0.00021095,2]
[377914950,1754613121505,-1757.73,0.00021095,2]
[377914951,1754613121516,-400.0,0.00021095,2]
[377914952,1754613121526,-1316.97,0.00021095,2]
[377914953,1754613121536,-1208.59,0.00021095,2]
[377914954,1754613121546,-454.26,0.00021095,2]
[377914955,1754613121556,-3377.08,0.00021095,2]
[377914956,1754613121566,-191.51,0.00021095,2]
[377914957,1754613121576,-1895.55,0.00021095,2]
[377914958,1754613121586,-671.01,0.00021095,2]
[377914959,1754613121596,-1206.78,0.00021095,2]
[377914960,1754613121607,-1065.6,0.00021095,2]
[377914961,1754613121618,-2465.13,0.00021095,2]
[377914962,1754613121632,-400.0,0.00021095,2]
[377914963,1754613121642,-930.4,0.00021095,2]
[377914964,1754613121652,-2359.49,0.00021095,2]
[377914965,1754613121662,-1712.73,0.00021095,2]
[377914966,1754613121672,-916.62,0.00021095,2]
[377914967,1754613121682,-1926.69,0.00021095,2]
[377914968,1754613121693,-260.29552346,0.00021095,2]
[377914969,1754613121704,-831.18,0.00021095,2]
[377914970,1754613121714,-458.34,0.00021095,2]
[377914971,1754613121725,-1982.51,0.00021095,2]
[377914972,1754613121736,-1225.08,0.00021095,2]
[377914973,1754613121746,-2026.14,0.00021095,2]
[377914974,1754613121756,-785.6,0.00021095,2]
[377914975,1754613121767,-1138.89,0.00021095,2]
[377914976,1754613121778,-1259.99,0.00021095,2]
[377914977,1754613121788,-1835.44,0.00021095,2]
[377914978,1754613121799,-821.3,0.00021095,2]
[377914979,1754613121809,-1205.32,0.00021095,2]
[377914980,1754613121820,-1444.0,0.00021095,2]
[377914981,1754613121831,-517.59,0.00021095,2]
[377914982,1754613121841,-2627.0,0.00021095,2]
[377914983,1754613121851,-1785.88,0.00021095,2]
[377914984,1754613121864,-720.69,0.00021095,2]
[377914985,1754613121875,-400.0,0.00021095,2]
[377914986,1754613121885,-782.04,0.00021095,2]
[377914987,1754613121897,-400.0,0.00021095,2]
[377914988,1754613121907,-1057.29,0.00021095,2]
[377914989,1754613122208,-594.32,0.00021095,2]
[377914990,1754613122229,-737.52,0.00021095,2]
[377914991,1754613122239,-760.17,0.00021095,2]
[377914992,1754613122249,-1256.19,0.00021095,2]
[377914993,1754613122260,-2043.3,0.00021095,2]
[377914994,1754613122269,-1213.52,0.00021095,2]
[377914995,1754613122279,-1429.55,0.00021095,2]
[377914996,1754613122288,-400.0,0.00021095,2]
[377914997,1754613122298,-1326.52,0.00021095,2]
[377914998,1754613122308,-400.0,0.00021095,2]
[377914999,1754613122318,-718.93,0.00021095,2]
[377915000,1754613122329,-400.0,0.00021095,2]
[377915001,1754613122340,-2287.32,0.00021095,2]
[377915002,1754613122349,-1573.48,0.00021095,2]
[377915003,1754613122360,-1328.2,0.00021095,2]
[377915004,1754613122370,-1087.69,0.00021095,2]
[377915005,1754613122382,-400.0,0.00021095,2]
[377915006,1754613122392,-1998.91,0.00021095,2]
[377915007,1754613122402,-400.0,0.00021095,2]
[377915008,1754613122413,-2952.54,0.00021095,2]
[377915009,1754613122424,-1291.71,0.00021095,2]
[377915010,1754613122435,-507.81,0.00021095,2]
[377915011,1754613122445,-1129.91,0.00021095,2]
[377915012,1754613122457,-2109.97,0.00021095,2]
[377915013,1754613122467,-1425.93,0.00021095,2]
[377915014,1754613122477,-921.79,0.00021095,2]
[377915015,1754613122487,-780.96,0.00021095,2]
[377915016,1754613122500,-1165.14,0.00021095,2]
[377915017,1754613122510,-662.71,0.00021095,2]
[377915018,1754613122521,-1164.62,0.00021095,2]
[377915019,1754613122531,-2405.69,0.00021095,2]
[377915020,1754613122541,-620.84,0.00021095,2]
[377915021,1754613122551,-918.26,0.00021095,2]
[377915022,1754613122561,-1258.15,0.00021095,2]
[377915023,1754613122571,-2947.95,0.00021095,2]
[377915024,1754613122582,-876.19,0.00021095,2]
[377915025,1754613122593,-1553.23,0.00021095,2]
[377915026,1754613122604,-478.79,0.00021095,2]
[377915027,1754613122616,-1217.16,0.00021095,2]
[377915028,1754613122629,-599.75,0.00021095,2]
[377915029,1754613122640,-2199.42,0.00021095,2]
[377915030,1754613122650,-21934.36,0.00021095,2]
[377915031,1754613122660,-2212.98,0.00021095,2]
[377915032,1754613122669,-2805.22,0.00021095,2]
[377915033,1754613122679,-1718.94,0.00021095,2]
[377915034,1754613122689,-1128.21,0.00021095,2]
[377915035,1754613122699,-400.0,0.00021095,2]
[377915036,1754613122710,-400.0,0.00021095,2]
[377915037,1754613122720,-454.14,0.00021095,2]
[377915038,1754613122732,-913.11,0.00021095,2]
[377915039,1754613122742,-2525.21,0.00021095,2]
[377915040,1754613122753,-484.16,0.00021095,2]
[377915041,1754613122764,-1717.22,0.00021095,2]
[377915042,1754613122775,-674.02,0.00021095,2]
[377915043,1754613122785,-400.0,0.00021095,2]
[377915044,1754613122796,-3589.91,0.00021095,2]
[377915045,1754613122806,-445.14,0.00021095,2]
[377915046,1754613122816,-1638.11,0.00021095,2]
[377915047,1754613122826,-1662.56,0.00021095,2]
[377915048,1754613122838,-1890.31,0.00021095,2]
[377915049,1754613122848,-820.59,0.00021095,2]
[377915050,1754613122860,-400.0,0.00021095,2]
[377915051,1754613122870,-1814.44,0.00021095,2]
[377915052,1754613122883,-674.63,0.00021095,2]
[377915053,1754613122894,-2569.88,0.00021095,2]
[377915054,1754613122906,-600.51,0.00021095,2]
[377915055,1754613122916,-400.0,0.00021095,2]
[377915056,1754613122926,-2338.84,0.00021095,2]
[377915057,1754613122938,-400.0,0.00021095,2]
[377915058,1754613122949,-1179.5,0.00021095,2]
[377915059,1754613122959,-400.0,0.00021095,2]
[377915060,1754613122969,-2335.94,0.00021095,2]
[377915061,1754613122979,-5688.95,0.00021095,2]
[377915062,1754613122989,-1234.92,0.00021095,2]
[377915063,1754613123000,-400.0,0.00021095,2]
[377915064,1754613123009,-862.72,0.00021095,2]
[377915065,1754613123020,-1880.9,0.00021095,2]
[377915066,1754613123030,-1651.16,0.00021095,2]
[377915067,1754613123040,-400.0,0.00021095,2]
[377915068,1754613123050,-707.51,0.00021095,2]
[377915069,1754613123060,-480.51,0.00021095,2]
[377915070,1754613123070,-1525.3,0.00021095,2]
[377915071,1754613123080,-492.44,0.00021095,2]
[377915072,1754613123090,-417.0,0.000211,2]
[377915073,1754613123100,-1694.14,0.00021115,2]
[377915074,1754613123111,-1967.08,0.00021129,2]
[377915075,1754613123120,-600.0,0.00021259,2]
[377915076,1754613123132,-2796.14179699,0.00021269,2]
[377915077,1754613123142,-13530.23064313,0.00021269,2]
[377915078,1754613123152,-852.46,0.00021305,2]
[377915079,1754613123162,-400.0,0.00021351,2]
[377915080,1754613123172,-1770.72,0.00021356,2]
[377915081,1754613123182,-2033.74,0.00021356,2]
[377915082,1754613123192,-400.0,0.00021356,2]
[377915083,1754613123202,-1928.95,0.00021356,2]
[377915084,1754613123212,-1964.46,0.00021356,2]
[377915085,1754613123223,-1517.59,0.00021356,2]
[377915086,1754613123233,-2517.35,0.00021356,2]
[377915087,1754613123243,-3417.84,0.00021356,2]
[377915088,1754613123253,-5000.0,0.00021358,2]
[377915089,1754613123263,-2500.0,0.00021364,2]
[377915090,1754613123274,-2544.68643998,0.00021364,2]
[377915091,1754613123284,-2500.0,0.00021364,2]
[377915092,1754613123294,-1005.47718148,0.00021364,2]
[377915093,1754613123305,-400.0,0.00021369,2]
[377915094,1754613123315,-400.0,0.00021369,2]
[377915095,1754613123325,-413.9,0.00021369,2]
[377915096,1754613123335,-491.72,0.00021369,2]
[377915097,1754613123344,-400.0,0.00021369,2]
[377915098,1754613123355,-1398.87,0.00021369,2]
[377915099,1754613123365,-1031.25,0.00021369,2]
[377915100,1754613123377,-400.0,0.00021369,2]
[377915101,1754613123386,-400.0,0.00021369,2]
[377915102,1754613123396,-350.6204977,0.00021369,2]
[377915103,1754613123406,-400.0,0.00021369,2]
[377915104,1754613123416,-565.33,0.00021369,2]
[377915105,1754613123426,-984.93,0.00021369,2]
[377915106,1754613123435,-400.0,0.00021369,2]
[377915107,1754613123445,-1073.05,0.00021369,2]
[377915108,1754613123455,-400.0,0.00021369,2]
[377915109,1754613123464,-1178.77,0.00021369,2]
[377915110,1754613123474,-828.34,0.00021369,2]
[377915111,1754613123484,-400.0,0.00021369,2]
[377915112,1754613123494,-400.0,0.00021369,2]
[377915113,1754613123504,-400.0,0.00021369,2]
[377915114,1754613123514,-400.0,0.00021369,2]
[377915115,1754613123524,-812.28,0.00021369,2]
[377915116,1754613123534,-927.28,0.00021369,2]
[377915117,1754613123544,-400.0,0.00021369,2]
[377915118,1754613123554,-400.0,0.00021369,2]
[377915119,1754613123564,-400.0,0.00021369,2]
[377915120,1754613123573,-953.96,0.00021369,2]
[377915121,1754613123583,-400.0,0.00021369,2]
[377915122,1754613123593,-400.0,0.00021369,2]
[377915123,1754613123604,-861.71,0.00021369,2]
[377915124,1754613123615,-802.6,0.00021369,2]
[377915125,1754613123628,-400.0,0.00021369,2]
[377915126,1754613123637,-580.75,0.00021369,2]
[377915127,1754613123647,-246.75749794,0.00021369,2]
[377915128,1754613123657,-400.0,0.00021369,2]
[377915129,1754613123667,-571.8,0.00021369,2]
[377915130,1754613123677,-400.0,0.00021369,2]
[377915131,1754613123687,-400.0,0.00021369,2]
[377915132,1754613123696,-1017.49,0.00021369,2]
[377915133,1754613123707,-480.71,0.00021369,2]
[377915134,1754613123718,-400.0,0.00021369,2]
[377915135,1754613123728,-403.89,0.00021369,2]
[377915136,1754613123738,-400.0,0.00021369,2]
[377915137,1754613123748,-400.0,0.00021369,2]
[377915138,1754613123758,-400.0,0.00021369,2]
[377915139,1754613123768,-1379.73,0.00021369,2]
[377915140,1754613123778,-1290.36,0.00021369,2]
[377915141,1754613123788,-400.0,0.00021369,2]
[377915142,1754613123798,-400.0,0.00021369,2]
[377915143,1754613123809,-560.12,0.00021369,2]
[377915144,1754613123820,-1326.45,0.00021369,2]
[377915145,1754613123829,-1037.58,0.00021369,2]
[377915146,1754613123839,-400.0,0.00021369,2]
[377915147,1754613123850,-570.53,0.00021369,2]
[377915148,1754613123863,-551.88,0.00021369,2]
[377915149,1754613123876,-624.79,0.00021369,2]
[377915150,1754613123886,-459.48,0.00021369,2]
[377915151,1754613123897,-912.6,0.00021369,2]
[377915152,1754613123907,-453.86,0.00021369,2]
[377915153,1754613123917,-845.43,0.00021369,2]
[377915154,1754613123928,-610.33,0.00021369,2]
[377915155,1754613123941,-191.27685972,0.00021369,2]
[377915156,1754613123954,-1543.29,0.00021369,2]
[377915157,1754613123965,-802.15,0.00021369,2]
[377915158,1754613123975,-405.06,0.00021369,2]
[377915159,1754613123985,-400.0,0.00021369,2]
[377915160,1754613123996,-400.0,0.00021369,2]
[377915161,1754613124006,-1052.0,0.00021369,2]
[377915162,1754613124016,-1340.86,0.00021369,2]
[377915163,1754613124026,-400.0,0.00021369,2]
[377915164,1754613124035,-950.22,0.00021369,2]
[377915165,1754613124046,-903.46,0.00021369,2]
[377915166,1754613124056,-1188.56,0.00021369,2]
[377915167,1754613124066,-400.0,0.00021369,2]
[377915168,1754613124076,-400.0,0.00021369,2]
[377915169,1754613124088,-511.85,0.00021369,2]
[377915170,1754613124099,-502.43,0.00021369,2]
[377915171,1754613124110,-469.08,0.00021369,2]
[377915172,1754613124120,-538.68,0.00021369,2]
[377915173,1754613124138,-431.81,0.00021369,2]
[377915174,1754613124148,-415.03,0.00021369,2]
[377915175,1754613124158,-400.0,0.00021369,2]
[377915176,1754613124168,-400.0,0.00021369,2]
[377915177,1754613124178,-400.0,0.00021369,2]
[377915178,1754613124187,-652.84,0.00021369,2]
[377915179,1754613124197,-448.34,0.00021369,2]
[377915180,1754613124207,-613.1,0.00021369,2]
[377915181,1754613124217,-400.0,0.00021369,2]
[377915182,1754613124227,-400.0,0.00021369,2]
[377915183,1754613124237,-1054.59,0.00021369,2]
[377915184,1754613124248,-606.31,0.00021369,2]
[377915185,1754613124258,-400.0,0.00021369,2]
[377915186,1754613124268,-468.72,0.00021369,2]
[377915187,1754613124277,-560.03,0.00021369,2]
[377915188,1754613124286,-400.0,0.00021369,2]
[377915189,1754613124296,-1129.63,0.00021369,2]
[377915190,1754613124305,-744.37,0.00021369,2]
[377915191,1754613124315,-771.07,0.00021369,2]
[377915192,1754613124325,-1372.41,0.00021369,2]
[377915193,1754613124335,-830.78,0.00021369,2]
[377915194,1754613124344,-643.55,0.00021369,2]
[377915195,1754613124354,-1290.29,0.00021369,2]
[377915196,1754613124364,-400.0,0.00021369,2]
[377915197,1754613124376,-400.0,0.00021369,2]
[377915198,1754613124386,-463.32,0.00021369,2]
[377915199,1754613124396,-400.0,0.00021369,2]
[377915200,1754613124406,-400.0,0.00021369,2]
[377915201,1754613124415,-400.0,0.00021369,2]
[377915202,1754613124425,-400.0,0.00021369,2]
[377915203,1754613124435,-400.0,0.00021369,2]
[377915204,1754613124444,-792.51,0.00021369,2]
[377915205,1754613124454,-720.13,0.00021369,2]
[377915206,1754613124463,-526.14,0.00021369,2]
[377915207,1754613124472,-690.34,0.00021369,2]
[377915208,1754613124482,-767.24,0.00021369,2]
[377915209,1754613124491,-784.03,0.00021369,2]
[377915210,1754613124501,-619.45,0.00021369,2]
[377915211,1754613124511,-592.46,0.00021369,2]
[377915212,1754613124521,-838.34,0.00021369,2]
[377915213,1754613124530,-400.0,0.00021369,2]
[377915214,1754613124540,-400.0,0.00021369,2]
[377915215,1754613124549,-400.0,0.00021369,2]
[377915216,1754613124559,-430.58,0.00021369,2]
[377915217,1754613124569,-400.0,0.00021369,2]
[377915218,1754613124578,-400.0,0.00021369,2]
[377915219,1754613124587,-400.0,0.00021369,2]
[377915220,1754613124597,-400.0,0.00021369,2]
[377915221,1754613124606,-887.56,0.00021369,2]
[377915222,1754613124617,-400.0,0.00021369,2]
[377915223,1754613124630,-1398.35,0.00021369,2]
[377915224,1754613124640,-1086.27,0.00021369,2]
[377915225,1754613124650,-1137.31,0.00021369,2]
[377915226,1754613124755,-488.07,0.00021369,2]
[377915227,1754613124766,-400.0,0.00021369,2]
[377915228,1754613124775,-433.15,0.00021369,2]
[377915229,1754613124785,-644.96,0.00021369,2]
[377915230,1754613124795,-969.77,0.00021369,2]
[377915231,1754613124804,-711.54,0.00021369,2]
[377915232,1754613124813,-615.2,0.00021369,2]
[377915233,1754613124822,-1326.15,0.00021369,2]
[377915234,1754613124832,-580.71,0.00021369,2]
[377915235,1754613124841,-745.61,0.00021369,2]
[377915236,1754613124851,-777.93,0.00021369,2]
[377915237,1754613124862,-400.0,0.00021369,2]
[377915238,1754613124871,-533.67,0.00021369,2]
[377915239,1754613124884,-1146.04,0.00021369,2]
[377915240,1754613124894,-400.0,0.00021369,2]
[377915241,1754613124903,-1764.53,0.00021369,2]
[377915242,1754613124913,-400.0,0.00021369,2]
[377915243,1754613124923,-678.35,0.00021369,2]
[377915244,1754613124933,-595.92,0.00021369,2]
[377915245,1754613124943,-1128.98,0.00021369,2]
[377915246,1754613124952,-400.0,0.00021369,2]
[377915247,1754613124961,-1058.02,0.00021369,2]
[377915248,1754613124971,-460.25,0.00021369,2]
[377915249,1754613124982,-467.91,0.00021369,2]
[377915250,1754613124991,-498.62,0.00021369,2]
[377915251,1754613125001,-684.85,0.00021369,2]
[377915252,1754613125011,-400.0,0.00021369,2]
[377915253,1754613125020,-1822.08,0.00021369,2]
[377915254,1754613125029,-519.11,0.00021369,2]
[377915255,1754613125039,-834.5,0.00021369,2]
[377915256,1754613125048,-400.0,0.00021369,2]
[377915257,1754613125057,-400.0,0.00021369,2]
[377915258,1754613125067,-400.0,0.00021369,2]
[377915259,1754613125076,-431.49,0.00021369,2]
[377915260,1754613125085,-400.0,0.00021369,2]
[377915261,1754613125094,-400.0,0.00021369,2]
[377915262,1754613125104,-756.51,0.00021369,2]
[377915263,1754613125113,-474.3,0.00021369,2]
[377915264,1754613125126,-753.02,0.00021369,2]
[377915265,1754613125135,-400.0,0.00021369,2]
[377915266,1754613125145,-400.0,0.00021369,2]
[377915267,1754613125154,-400.0,0.00021369,2]
[377915268,1754613125164,-530.37,0.00021369,2]
[377915269,1754613125173,-1312.14,0.00021369,2]
[377915270,1754613125183,-400.0,0.00021369,2]
[377915271,1754613125193,-664.1,0.00021369,2]
[377915272,1754613125202,-723.03,0.00021369,2]
[377915273,1754613125211,-488.75,0.00021369,2]
[377915274,1754613125220,-753.14,0.00021369,2]
[377915275,1754613125230,-400.0,0.00021369,2]
[377915276,1754613125239,-481.93,0.00021369,2]
[377915277,1754613125248,-1362.2,0.00021369,2]
[377915278,1754613125258,-681.29,0.00021369,2]
[377915279,1754613125268,-1202.92,0.00021369,2]
[377915280,1754613125277,-400.0,0.00021369,2]
[377915281,1754613125286,-908.09,0.00021369,2]
[377915282,1754613125295,-1356.82,0.00021369,2]
[377915283,1754613125305,-400.0,0.00021369,2]
[377915284,1754613125314,-642.93,0.00021369,2]
[377915285,1754613125323,-558.14,0.00021369,2]
[377915286,1754613125333,-400.0,0.00021369,2]
[377915287,1754613125343,-473.3,0.00021369,2]
[377915288,1754613125353,-857.38,0.00021369,2]
[377915289,1754613125363,-600.87,0.00021369,2]
[377915290,1754613125373,-400.0,0.00021369,2]
[377915291,1754613125383,-1113.28,0.00021369,2]
[377915292,1754613125393,-1063.89,0.00021369,2]
[377915293,1754613125404,-766.74,0.00021369,2]
[377915294,1754613125413,-702.23,0.00021369,2]
[377915295,1754613125423,-400.0,0.00021369,2]
[377915296,1754613125432,-697.81,0.00021369,2]
[377915297,1754613125442,-593.88,0.00021369,2]
[377915298,1754613125452,-565.06,0.00021369,2]
[377915299,1754613125461,-1013.85,0.00021369,2]
[377915300,1754613125470,-1070.57,0.00021369,2]
[377915301,1754613125479,-835.59,0.00021369,2]
[377915302,1754613125489,-787.56,0.00021369,2]
[377915303,1754613125498,-714.37,0.00021369,2]
[377915304,1754613125508,-805.74,0.00021369,2]
[377915305,1754613125517,-400.0,0.00021369,2]
[377915306,1754613125527,-400.0,0.00021369,2]
[377915307,1754613125536,-400.0,0.00021369,2]
[377915308,1754613125546,-446.94,0.00021369,2]
[377915309,1754613125555,-518.84,0.00021369,2]
[377915310,1754613125566,-634.1,0.00021369,2]
[377915311,1754613125575,-997.03,0.00021369,2]
[377915312,1754613125584,-668.96,0.00021369,2]
[377915313,1754613125594,-1310.15,0.00021369,2]
[377915314,1754613125604,-602.12,0.00021369,2]
[377915315,1754613125614,-542.82,0.00021369,2]
[377915316,1754613125627,-823.13,0.00021369,2]
[377915317,1754613125637,-539.85,0.00021369,2]
[377915318,1754613125646,-1520.38,0.00021369,2]
[377915319,1754613125655,-677.81,0.00021369,2]
[377915320,1754613125664,-400.0,0.00021369,2]
[377915321,1754613125674,-1166.4,0.00021369,2]
[377915322,1754613125683,-400.0,0.00021369,2]
[377915323,1754613125693,-440.74,0.00021369,2]
[377915324,1754613125705,-400.0,0.00021369,2]
[377915325,1754613125715,-400.0,0.00021369,2]
[377915326,1754613125725,-1322.15,0.00021369,2]
[377915327,1754613125735,-400.0,0.00021369,2]
[377915328,1754613125745,-400.0,0.00021369,2]
[377915329,1754613125754,-400.0,0.00021369,2]
[377915330,1754613125764,-400.0,0.00021369,2]
[377915331,1754613125774,-439.53,0.00021369,2]
[377915332,1754613125783,-729.31,0.00021369,2]
[377915333,1754613125793,-455.12,0.00021369,2]
[377915334,1754613125803,-400.0,0.00021369,2]
[377915335,1754613125813,-1225.17,0.00021369,2]
[377915336,1754613125824,-400.0,0.00021369,2]
[377915337,1754613125834,-1460.14,0.00021369,2]
[377915338,1754613125844,-400.0,0.00021369,2]
[377915339,1754613125854,-400.0,0.00021369,2]
[377915340,1754613125868,-535.87,0.00021369,2]
[377915341,1754613125880,-965.56,0.00021369,2]
[377915342,1754613125889,-400.0,0.00021369,2]
[377915343,1754613125899,-400.0,0.00021369,2]
[377915344,1754613125909,-400.0,0.00021369,2]
[377915345,1754613125919,-400.0,0.00021369,2]
[377915346,1754613125929,-400.0,0.00021369,2]
[377915347,1754613125943,-473.14,0.00021369,2]
[377915348,1754613125955,-1112.82,0.00021369,2]
[377915349,1754613125964,-1239.98,0.00021369,2]
[377915350,1754613125975,-400.0,0.00021369,2]
[377915351,1754613125985,-592.4,0.00021369,2]
[377915352,1754613125994,-400.0,0.00021369,2]
[377915353,1754613126003,-400.0,0.00021369,2]
[377915354,1754613126013,-1121.49,0.00021369,2]
[377915355,1754613126023,-546.56,0.00021369,2]
[377915356,1754613126032,-412.93,0.00021369,2]
[377915357,1754613126042,-400.0,0.00021369,2]
[377915358,1754613126052,-1332.23,0.00021369,2]
[377915359,1754613126061,-2373.45,0.00021369,2]
[377915360,1754613126070,-867.66,0.00021369,2]
[377915361,1754613126079,-1921.83,0.00021369,2]
[377915362,1754613126088,-400.0,0.00021369,2]
[377915363,1754613126097,-400.0,0.00021369,2]
[377915364,1754613126106,-400.0,0.00021369,2]
[377915365,1754613126116,-477.33,0.00021369,2]
[377915366,1754613126127,-586.09,0.00021369,2]
[377915367,1754613126137,-633.66,0.00021369,2]
[377915368,1754613126146,-400.0,0.00021369,2]
[377915369,1754613126156,-434.62,0.00021369,2]
[377915370,1754613126165,-400.0,0.00021369,2]
[377915371,1754613126175,-1031.22,0.00021369,2]
[377915372,1754613126185,-400.0,0.00021369,2]
[377915373,1754613126194,-400.0,0.00021369,2]
[377915374,1754613126203,-591.29,0.00021369,2]
[377915375,1754613126212,-1239.8,0.00021369,2]
[377915376,1754613126221,-419.72,0.00021369,2]
[377915377,1754613126231,-765.3,0.00021369,2]
[377915378,1754613126240,-433.91,0.00021369,2]
[377915379,1754613126250,-1091.91,0.00021369,2]
[377915380,1754613126260,-718.67,0.00021369,2]
[377915381,1754613126270,-400.0,0.00021369,2]
[377915382,1754613126279,-942.73,0.00021369,2]
[377915383,1754613126289,-400.0,0.00021369,2]
[377915384,1754613126298,-655.59,0.00021369,2]
[377915385,1754613126307,-549.44,0.00021369,2]
[377915386,1754613126317,-706.48,0.00021369,2]
[377915387,1754613126326,-798.23,0.00021369,2]
[377915388,1754613126335,-1153.34,0.00021369,2]
[377915389,1754613126346,-1177.75,0.00021369,2]
[377915390,1754613126355,-549.94,0.00021369,2]
[377915391,1754613126365,-560.12,0.00021369,2]
[377915392,1754613126376,-819.45,0.00021369,2]
[377915393,1754613126386,-895.98,0.00021369,2]
[377915394,1754613126395,-804.91,0.00021369,2]
[377915395,1754613126406,-472.38,0.00021369,2]
[377915396,1754613126415,-400.0,0.00021369,2]
[377915397,1754613126425,-400.0,0.00021369,2]
[377915398,1754613126434,-638.56,0.00021369,2]
[377915399,1754613126444,-1000.0,0.00021369,2]
[377915400,1754613126453,-1258.89,0.00021369,2]
[377915401,1754613126463,-352.152162,0.00021369,2]
[377915402,1754613126474,-352.152162,0.00021369,2]
[377915403,1754613126484,-400.0,0.00021369,2]
[377915404,1754613126493,-593.81,0.00021369,2]
[377915405,1754613126503,-420.834801,0.00021369,2]
[377915406,1754613126512,-400.0,0.00021369,2]
[377915407,1754613126522,-420.834801,0.00021369,2]
[377915408,1754613126532,-622.14,0.00021369,2]
[377915409,1754613126542,-400.0,0.00021369,2]
[377915410,1754613126552,-1287.29,0.00021369,2]
[377915411,1754613126562,-1105.48,0.00021369,2]
[377915412,1754613126571,-1707.57,0.00021369,2]